[Event "Summer Chess Classic-B 2022"]
[Site "Saint Louis"]
[Date "2022.06.07"]
[Round "6.3"]
[White "Burke, John M"]
[Black "Zhou, Jianchao"]
[Result "1/2-1/2"]
[ECO "B90"]
[WhiteElo "2579"]
[BlackElo "2589"]
[Annotator "TA"]
[PlyCount "140"]
[EventDate "2022.05.31"]
[EventType "tourn"]
[EventCountry "USA"]
[SourceTitle "playchess.com"]
[Source "ChessBase"]
[SourceQuality "1"]
[TimeControl "40/5400+30:1800+30"]

{[%evp 23,140,25,22,27,24,20,20,0,32,0,0,0,18,18,21,16,4,8,24,21,46,50,37,0,0,0,0,0,20,12,29,35,33,30,73,68,85,87,95,105,101,102,100,106,104,89,90,89,89,92,93,92,92,92,92,59,67,67,67,67,67,10,10,0,0,0,0,0,0,0,10,10,10,10,10,10,10,12,12,10,33,29,32,11,11,11,11,11,12,6,8,8,8,10,13,2,7,0,1,0,33,0,0,0,0,0,0,0,0,0,0,0,0,0,0,0,0,0,0]} 1. e4 {[%emt 0:00:04]} c5 {[%emt 0:00:10]} 2. Nf3 {[%emt 0:00:05]} d6 {[%emt 0:00:05]} 3. d4 {[%emt 0:00:04]} cxd4 {[%emt 0:00:05]} 4. Nxd4 {[%emt 0:00:05]} Nf6 {[%emt 0:00:07]} 5. Nc3 {[%emt 0:00:04]} a6 {[%emt 0:00:04]} 6. Be3 {[%emt 0:00:31]} e5 {[%emt 0:00:30]} 7. Nb3 {[%emt 0:00:07]} Be6 {[%emt 0:00:27]} 8. f3 {[%emt 0:00:39]} Be7 {[%emt 0:00:08]} 9. Qd2 {[%emt 0:00:24]} O-O {[%emt 0:00:15]} 10. O-O-O {[%emt 0:00:33]} Nbd7 {[%emt 0:00:35]} 11. g4 {[%emt 0:00:57][%cal Bg2g4,Bg4g5][%mdl 32]} b5 {[%emt 0:00:39]} 12. g5 {[%emt 0:00:40]} Nh5 {[%emt 0:00:44]} 13. Kb1 {[%emt 0:00:59] B90: Sicilian Najdorf: Unusual White 6th moves, 6 Be3 Ng4 and 6 Be3 e5.} Nb6 {[%emt 0:01:29]} 14. Na5 {[%emt 0:01:55]} Qc7 {[%emt 0:01:54][%cal Oh5f4] Prevents Nc6.} 15. h4 {[%emt 0:02:21]} Rac8 {[%emt 0:08:53] [#]} 16. Nd5 $146 {[%emt 0:20:28]} ({Predecessor:} 16. a3 g6 17. Nd5 Nxd5 18. exd5 Bxd5 19. Qxd5 Qxa5 20. Bd3 Qc7 21. c4 bxc4 22. Rc1 {½-½ (48) Pessoa,F (2501)-Nekhaev,A (2489) ICCF email 2018}) 16... Nxd5 {[%emt 0:00:29]} 17. exd5 {[%emt 0:00:10]} Bxd5 {[%emt 0:01:42]} 18. Qxd5 {[%emt 0:01:18] [#] Hoping for Nb3.} Qxa5 {[%emt 0:00:32]} 19. Bd3 {[%emt 0:05:21][%cal Of3f4]} Qc7 {[%emt 0:08:54]} 20. Bf5 {[%emt 0:07:05]} Rce8 {[%emt 0:05:56]} 21. Bg4 {[%emt 0:07:00] This bishop pair is nice.} Nf4 {[%emt 0:06:41]} 22. Bxf4 {[%emt 0:02:40]} exf4 {[%emt 0:00:03]} 23. Rhe1 {[%emt 0:07:42]} Bd8 {[%emt 0:05:53]} 24. Qd4 {[%emt 0:04:16]} Rxe1 {[%emt 0:14:32]} 25. Rxe1 {[%emt 0:00:10]} Qc6 {[%emt 0:00:15]} 26. a3 {[%emt 0:05:52]} f5 {[%emt 0:08:40]} 27. gxf6 {[%emt 0:04:35]} Bxf6 {[%emt 0:05:43]} 28. Qxf4 {[%emt 0:00:42]} Qc5 {[%emt 0:04:21]} 29. h5 {[%emt 0:02:18]} a5 {[%emt 0:06:37]} 30. Rd1 {[%emt 0:07:05][%cal Be1d1,Bd1d5,Bd5b5][%mdl 32]} Qe5 {[%emt 0:10:49] Against Be6+} 31. Qxe5 {[%emt 0:00:18] Active counter play!} Bxe5 $16 {[%emt 0:00:11][%mdl 4096] Endgame KRB-KRB} 32. Be6+ {[%emt 0:01:17]} Kh8 {[%emt 0:00:03]} 33. Rd5 {[%emt 0:00:10]} Rb8 {[%emt 0:01:07]} 34. Bd7 {[%emt 0:05:41]} b4 {[%emt 0:01:39]} 35. a4 {[%emt 0:00:32]} Ra8 {[%emt 0:01:15]} 36. Bc6 {[%emt 0:01:39]} Ra6 {[%emt 0:01:54] [#]} 37. Rb5 $1 {[%emt 0:05:18][%cal Rb5b8]} Kg8 {[%emt 0:03:16]} 38. Bd5+ {[%emt 0:02:41]} Kf8 {[%emt 0:00:01]} 39. Rb7 {[%emt 0:00:33][%cal Of3f4]} h6 {[%emt 0:00:53]} 40. Ka2 {[%emt 0:04:16]} Bd4 {[%emt 0:00:30]} 41. Kb3 {[%emt 0:19:08]} Ra7 {[%emt 0:01:07]} 42. Rb5 {[%emt 0:00:12]} (42. Rxa7 $1 $14 Bxa7 43. Kc4) 42... Ke7 $11 {[%emt 0:02:06]} 43. c3 {[%emt 0:02:18]} bxc3 {[%emt 0:00:35]} 44. bxc3 {[%emt 0:00:04]} Be5 {[%emt 0:13:34]} 45. Bb7 {[%emt 0:01:41]} Kf6 {[%emt 0:04:43]} 46. Kc4 {[%emt 0:00:50]} g6 {[%emt 0:01:32]} 47. hxg6 {[%emt 0:01:08]} Kxg6 {[%emt 0:00:08]} 48. Kd3 {[%emt 0:01:36]} h5 {[%emt 0:03:47]} 49. c4 {[%emt 0:00:22]} h4 {[%emt 0:01:26]} 50. Ke3 {[%emt 0:00:19]} Bh2 {[%emt 0:01:16]} 51. Kf2 {[%emt 0:03:22]} h3 {[%emt 0:03:59]} 52. Bc8 {[%emt 0:00:57]} Rc7 {[%emt 0:00:20][%csl LRc4,LRc8]} 53. Bf5+ {[%emt 0:01:13]} Kf6 {[%emt 0:00:54]} 54. Rxa5 {[%emt 0:00:10]} Rxc4 {[%emt 0:00:54]} 55. Bxh3 {[%emt 0:00:06]} d5 {[%emt 0:01:38]} 56. Ra8 {[%emt 0:04:33]} Rc2+ {[%emt 0:00:48]} 57. Ke3 {[%emt 0:00:35]} Bg1+ {[%emt 0:00:39]} 58. Kd3 {[%emt 0:00:14]} Ra2 {[%emt 0:00:11]} 59. a5 {[%emt 0:00:47]} Ke5 {[%emt 0:00:35]} 60. a6 {[%emt 0:01:21]} Ra3+ {[%emt 0:00:26]} 61. Ke2 {[%emt 0:00:14]} d4 {[%emt 0:01:04][%cal Bd5d4,Bd4d3][%mdl 32]} 62. Kf1 {[%emt 0:00:30]} Ra1+ {[%emt 0:00:49] The position is equal.} 63. Kg2 {[%emt 0:00:09]} d3 $1 {[%emt 0:00:42]} 64. Rd8 {[%emt 0:00:44]} Bd4 {[%emt 0:00:44]} 65. Re8+ {[%emt 0:00:54]} Kf6 {[%emt 0:00:25]} 66. Re6+ {[%emt 0:00:27]} Kg7 {[%emt 0:00:33] ( -> ...d2)} 67. Rd6 {[%emt 0:00:34]} Ra2+ {[%emt 0:00:28]} 68. Kf1 {[%emt 0:00:27]} Ra1+ {[%emt 0:00:18]} 69. Kg2 {[%emt 0:00:03] Strongly threatening Rd7+.} Ra2+ {[%emt 0:00:19]} 70. Kf1 {[%emt 0:00:03] Rd7+ is the strong threat.} Ra1+ {[%emt 0:00:12] Weighted Error Value: White=0.07 (flawless) /Black=0.05 (flawless)} 1/2-1/2

[Event "Summer Chess Classic-B 2022"]
[Site "Saint Louis"]
[Date "2022.06.07"]
[Round "6.4"]
[White "Ali Marandi, Cemil Can"]
[Black "Dragun, Kamil"]
[Result "1/2-1/2"]
[ECO "D41"]
[WhiteElo "2532"]
[BlackElo "2571"]
[Annotator "TA"]
[PlyCount "217"]
[EventDate "2022.05.31"]
[EventType "tourn"]
[EventCountry "USA"]
[SourceTitle "playchess.com"]
[Source "ChessBase"]
[SourceQuality "1"]
[TimeControl "40/5400+30:1800+30"]

{[%evp 56,217,29,29,37,36,35,37,66,52,94,22,25,18,23,26,26,0,14,11,72,61,88,99,94,57,47,54,51,37,37,37,36,27,27,0,37,23,23,23,23,23,23,8,23,23,23,23,34,12,12,12,12,12,12,0,0,0,0,0,0,0,0,0,0,0,8,8,8,8,8,8,10,10,1642,1664,1550,1252,1049,1115,543,160,153,170,5248,164,205,11325,215,11413,9049,2418,10402,9920,6740,929,4258,5241,936,18,18,40,54,93,138,153,193,0,0,0,0,0,0,0,0,0,0,0,0,0,0,0,0,0,0,0,0,0,0,0,0,0,0,0,0,0,0,0,0,0,0,0,7,7,7,7,7,7,7,7,8,8,12,12,12,12,12,12,12,0,0,0,0,0]} 1. d4 {[%emt 0:00:02]} Nf6 {[%emt 0:00:07]} 2. c4 {[%emt 0:00:07]} e6 {[%emt 0:00:07]} 3. Nf3 {[%emt 0:00:06]} d5 {[%emt 0:00:17]} 4. Nc3 {[%emt 0:00:08]} c5 {[%emt 0:00:14]} 5. cxd5 {[%emt 0:00:41]} cxd4 {[%emt 0:00:27]} 6. Qxd4 {[%emt 0:00:43]} exd5 {[%emt 0:00:12]} 7. e4 {[%emt 0:02:17]} dxe4 {[%emt 0:00:41]} 8. Qxd8+ {[%emt 0:00:27]} Kxd8 {[%emt 0:00:11]} 9. Ng5 {[%emt 0:00:08]} Be6 {[%emt 0:00:20]} 10. Nxe6+ {[%emt 0:01:27]} fxe6 {[%emt 0:00:07]} 11. Bg5 {[%emt 0:03:10]} h6 {[%emt 0:00:35]} 12. O-O-O+ {[%emt 0:02:38]} Ke7 {[%emt 0:00:20]} 13. Bxf6+ {[%emt 0:02:37]} gxf6 {[%emt 0:00:08]} 14. Nxe4 {[%emt 0:00:09]} f5 {[%emt 0:00:07]} 15. Ng3 {[%emt 0:05:37]} h5 {[%emt 0:00:19]} 16. Bc4 {[%emt 0:02:25]} Nd7 {[%emt 0:00:15]} 17. Kb1 {[%emt 0:07:31]} Ne5 {[%emt 0:00:11]} 18. Bb3 {[%emt 0:00:40]} Kf6 {[%emt 0:00:09]} 19. Rhe1 {[%emt 0:02:33]} Re8 {[%emt 0:00:11]} 20. f4 {[%emt 0:10:26]} Ng6 {[%emt 0:11:25]} 21. Ne2 {[%emt 0:03:02]} Bb4 {[%emt 0:04:48]} 22. Rf1 {[%emt 0:00:17]} Bc5 {[%emt 0:02:39]} 23. Nc1 {[%emt 0:04:35]} Rd8 {[%emt 0:04:38]} 24. g3 {[%emt 0:03:42]} h4 {[%emt 0:03:45]} 25. Rfe1 {[%emt 0:08:30]} e5 {[%emt 0:08:02]} 26. Nd3 {[%emt 0:00:33]} Bd6 {[%emt 0:02:33]} 27. fxe5+ {[%emt 0:00:27]} Bxe5 {[%emt 0:00:34]} 28. Re3 {[%emt 0:00:22]} hxg3 {[%emt 0:25:34]} 29. hxg3 {[%emt 0:00:10]} Rh3 {[%emt 0:00:30]} 30. Rf1 {[%emt 0:00:45]} Rd4 {[%emt 0:10:01]} (30... Rxg3 $2 31. Nxe5 $1 Rxe3 32. Ng4+ Kg5 33. Nxe3 $18) 31. Ref3 {[%emt 0:13:13]} Rh5 {[%emt 0:00:18]} 32. Bc2 {[%emt 0:02:53]} Ne7 {[%emt 0:08:59]} 33. Nf2 {[%emt 0:05:27]} (33. Re3 $16 Bd6 34. g4) 33... Ke6 $11 {[%emt 0:07:40]} 34. Re1 {[%emt 0:02:15]} Nc6 {[%emt 0:03:11]} 35. Nd3 {[%emt 0:05:11]} Kf6 {[%emt 0:01:06]} 36. Nf2 {[%emt 0:02:59]} Ke6 {[%emt 0:00:49]} 37. a3 {[%emt 0:01:23]} a5 {[%emt 0:03:06]} (37... Rd2 $11 {keeps the balance.} 38. Nd3 Kd6) 38. Nd3 $16 {[%emt 0:04:06]} Kd6 {[%emt 0:01:16]} 39. Nxe5 {[%emt 0:03:07]} Nxe5 {[%emt 0:00:06]} 40. Rxf5 {[%emt 0:00:07]} (40. Rb3 {feels hotter.} Rd2 41. Rxb7 Nf3 42. Re3) 40... Rxf5 {[%emt 0:00:14]} 41. Bxf5 {[%emt 0:30:02]} Rd2 {[%emt 0:31:12]} 42. Bc2 {[%emt 0:00:00]} Rf2 {[%emt 0:00:00]} 43. Rd1+ {[%emt 0:00:00]} Kc5 {[%emt 0:00:00]} 44. Rc1 {[%emt 0:00:00]} Kd4 {[%emt 0:00:00]} 45. Rd1+ {[%emt 0:00:00]} Kc5 $1 {[%emt 0:00:00]} 46. Bb3 {[%emt 0:00:00]} Nc4 {[%emt 0:00:00]} 47. Bxc4 {[%emt 0:00:00]} Kxc4 {[%emt 0:00:00]} 48. Rc1+ {[%emt 0:00:00]} Kb3 {[%emt 0:00:00]} 49. Rc3+ {[%emt 0:00:00]} Ka4 {[%emt 0:00:00]} 50. Rc2 {[%emt 0:00:00]} Rf1+ {[%emt 0:00:00]} 51. Ka2 {[%emt 0:00:00]} Rg1 {[%emt 0:00:00]} 52. b3+ {[%emt 0:00:00]} Kb5 {[%emt 0:00:00]} 53. a4+ {[%emt 0:00:00]} Ka6 {[%emt 0:00:00]} 54. Rc3 {[%emt 0:00:00]} b5 {[%emt 0:00:00]} 55. Rf3 {[%emt 0:00:00]} Rg2+ {[%emt 0:00:00]} 56. Kb1 {[%emt 0:00:00]} bxa4 {[%emt 0:00:00]} 57. bxa4 {[%emt 0:00:02]} Kb6 {[%emt 0:00:00]} 58. Rc3 {[%emt 0:00:10]} Kb7 {[%emt 0:07:23]} 59. Kc1 {[%emt 0:00:19]} Kb6 {[%emt 0:00:01]} 60. Kd1 {[%emt 0:00:22]} Kb7 {[%emt 0:00:08]} 61. Ke1 {[%emt 0:01:21]} Kb6 $1 {[%emt 0:00:01]} 62. Kf1 {[%emt 0:01:52]} Rb2 $1 {[%emt 0:00:33]} 63. Rc4 {[%emt 0:00:14]} Rb4 {[%emt 0:00:29]} 64. Rf4 {[%emt 0:01:40]} Rb2 $2 {[%emt 0:03:12][%mdl 8192] [#]} (64... Rb1+ $11 65. Kg2 Kc6) 65. g4 $1 $18 {[%emt 0:01:55]} Kc5 {[%emt 0:00:47] [#]} 66. g5 $1 {[%emt 0:01:23]} Kd5 {[%emt 0:00:32]} 67. g6 {[%emt 0:00:59]} Rb8 {[%emt 0:00:35]} 68. Rf5+ {[%emt 0:04:07]} Ke6 {[%emt 0:00:05]} 69. Rxa5 {[%emt 0:00:12]} Kf6 {[%emt 0:00:04]} 70. Ra6+ {[%emt 0:00:08]} Kg7 {[%emt 0:00:04]} 71. a5 {[%emt 0:00:20]} Rb5 {[%emt 0:00:13]} 72. Ke2 {[%emt 0:00:15]} Rd5 {[%emt 0:00:08]} 73. Ke3 {[%emt 0:00:09]} Rb5 {[%emt 0:00:08]} 74. Kd4 {[%emt 0:00:14]} Rg5 {[%emt 0:00:05]} 75. Kc4 {[%emt 0:00:31]} (75. Ra8 $142 Kh6 76. a6 Rg4+ 77. Kd5 Rg5+ 78. Kd4 Rg4+ 79. Ke5 Rg5+ 80. Kd4) 75... Rg4+ $18 {[%emt 0:00:03]} 76. Kb5 {[%emt 0:00:34]} Rg5+ {[%emt 0:00:06]} 77. Kb6 $2 {[%emt 0:00:14]} (77. Ka4 $18) 77... Rxg6+ $11 {[%emt 0:01:03]} 78. Kb7 {[%emt 0:00:15]} Rg5 {[%emt 0:00:17]} 79. Ra8 {[%emt 0:02:04]} Kh7 {[%emt 0:01:37]} 80. Ra7 {[%emt 0:02:06]} ({Much less strong is} 80. a6 Rg7+ 81. Kc6 Rg6+ 82. Kd7 Rg7+ 83. Ke6 Rg6+ 84. Kd7 Rg7+ 85. Ke6 Rg6+ 86. Ke5 Rg5+ 87. Kf6 Rg6+ 88. Kf7 Rg7+ 89. Ke6 $18) 80... Kh6 {[%emt 0:01:09]} 81. a6 $2 {[%emt 0:01:36]} ({White should play} 81. Kb6 $18 {White wants to mate with Rc7.} Rg6+ 82. Kc5 Rg5+ 83. Kd4) 81... Rg7+ $1 $11 {[%emt 0:00:07]} 82. Kb8 {[%emt 0:00:07]} Rg8+ {[%emt 0:00:09]} 83. Kc7 {[%emt 0:00:02]} Rg7+ {[%emt 0:00:04]} 84. Kb6 {[%emt 0:00:04]} Rg6+ {[%emt 0:00:04]} 85. Kb5 {[%emt 0:00:12]} Rg5+ {[%emt 0:00:01]} 86. Kc4 {[%emt 0:00:18]} Rg4+ {[%emt 0:00:02]} 87. Kd5 {[%emt 0:00:23]} Rg5+ {[%emt 0:01:09]} 88. Ke6 {[%emt 0:00:25]} Rg6+ $1 {[%emt 0:00:20]} 89. Kf5 {[%emt 0:00:07]} Rg5+ {[%emt 0:01:39]} 90. Kf4 {[%emt 0:00:02]} Rg6 {[%emt 0:01:23]} 91. Ra8 {[%emt 0:00:34]} Kh7 {[%emt 0:00:22]} 92. Kf5 {[%emt 0:00:11]} Rb6 {[%emt 0:00:53]} 93. Kg5 {[%emt 0:00:09]} Rg6+ {[%emt 0:00:10]} 94. Kh5 {[%emt 0:00:11]} Rh6+ {[%emt 0:00:02]} 95. Kg4 {[%emt 0:00:11]} Rg6+ {[%emt 0:00:02]} 96. Kf4 {[%emt 0:00:12]} Rf6+ {[%emt 0:00:41]} 97. Ke5 {[%emt 0:00:08]} Rg6 {[%emt 0:00:30]} 98. Kd5 {[%emt 0:00:33]} Rg5+ {[%emt 0:00:21]} 99. Kc6 {[%emt 0:00:34]} Rg6+ $1 {[%emt 0:00:10]} 100. Kb5 {[%emt 0:00:13]} Rg5+ {[%emt 0:00:05]} 101. Kc4 {[%emt 0:00:18]} Rg4+ {[%emt 0:00:06]} 102. Kd3 {[%emt 0:00:08]} Rg3+ {[%emt 0:00:13]} 103. Ke4 {[%emt 0:00:06]} Rg6 $1 {[%emt 0:00:18]} 104. Ra7+ $1 {[%emt 0:00:12]} Kh6 {[%emt 0:00:53]} 105. Kf4 {[%emt 0:00:23]} Rf6+ {[%emt 0:01:02]} 106. Ke5 {[%emt 0:00:08]} Rg6 {[%emt 0:00:23]} 107. Rd7 {[%emt 0:00:27]} Rxa6 {[%emt 0:00:06]} 108. Rd6+ $1 {[%emt 0:00:02]} Rxd6 {[%emt 0:00:06]} 109. Kxd6 {[%emt 0:00:02]} 1/2-1/2

[Event "Summer Chess Classic-B 2022"]
[Site "Saint Louis"]
[Date "2022.06.07"]
[Round "6.5"]
[White "Vazquez, Guillermo"]
[Black "Checa, Nicolas"]
[Result "1/2-1/2"]
[ECO "D94"]
[WhiteElo "2557"]
[BlackElo "2533"]
[Annotator "TA"]
[PlyCount "81"]
[EventDate "2022.05.31"]
[EventType "tourn"]
[EventCountry "USA"]
[SourceTitle "playchess.com"]
[Source "ChessBase"]
[SourceQuality "1"]
[TimeControl "40/5400+30:1800+30"]

{[%evp 16,81,28,48,39,33,36,7,8,14,1,16,23,14,29,16,41,0,0,0,0,0,-6,-5,-10,-14,-11,-15,0,0,0,0,0,0,0,0,0,0,0,0,0,0,0,0,0,0,0,0,0,0,0,0,0,0,0,0,0,0,0,0,0,0,0,0,0,0,0,0]} 1. d4 {[%emt 0:00:05]} d5 {[%emt 0:00:58]} 2. c4 {[%emt 0:00:14]} c6 {[%emt 0:01:32]} 3. Nc3 {[%emt 0:00:51]} Nf6 {[%emt 0:01:11]} 4. e3 {[%emt 0:00:33]} g6 {[%emt 0:00:50]} 5. Nf3 {[%emt 0:00:24]} Bg7 {[%emt 0:00:06]} 6. Be2 {[%emt 0:01:02]} O-O {[%emt 0:00:16]} 7. O-O {[%emt 0:00:21]} Bg4 {[%emt 0:03:11] 7...a6 is the modern continuation.} 8. cxd5 {[%emt 0:03:02]} cxd5 {[%emt 0:00:45]} 9. Qb3 {[%emt 0:00:09]} b6 {[%emt 0:07:32] D94: Grünfeld: 4 Nf3 Bg7 5 e3.} 10. Bd2 {[%emt 0:17:17]} Ne4 {[%emt 0:10:12] [#] Strongly threatening ...Bxf3.} 11. Qc2 $146 {[%emt 0:16:38]} ({Predecessor:} 11. Be1 Nc6 12. h3 Bf5 13. Bb5 Rc8 14. Qxd5 Nd6 15. Be2 Na5 16. Ne5 Rxc3 17. Bxc3 {1-0 (31) Carlsen,M (2862)-Artemiev,V (2708) Chess.com INT 2020}) 11... Nxd2 {[%emt 0:02:24]} 12. Nxd2 {[%emt 0:01:13]} Bxe2 {[%emt 0:02:48]} 13. Nxe2 {[%emt 0:00:14]} Nd7 {[%emt 0:01:03][%cal Bb8d7,Bd7e5,Be5d3][%mdl 32]} 14. Rac1 {[%emt 0:07:40]} e5 {[%emt 0:01:10]} 15. dxe5 {[%emt 0:03:54] f4 is the strong threat.} Nxe5 {[%emt 0:00:20]} 16. Nd4 {[%emt 0:00:07]} (16. Nb1 $14) 16... Rc8 $11 {[%emt 0:02:21] The position is equal.} 17. Qa4 {[%emt 0:04:18]} Qe7 {[%emt 0:02:47]} 18. h3 {[%emt 0:02:46]} Rxc1 {[%emt 0:09:30]} (18... Nd3 $2 19. Rxc8 Rxc8 20. Qa6 $18) 19. Rxc1 {[%emt 0:00:15]} Nd3 {[%emt 0:00:05][%csl LRb2,LRc1]} 20. Rf1 {[%emt 0:03:06]} Nxb2 {[%emt 0:02:43]} 21. Qb3 {[%emt 0:00:35][%csl LRb2,LRd5]} Bxd4 {[%emt 0:06:33]} 22. exd4 {[%emt 0:00:03]} Nc4 {[%emt 0:00:05]} 23. Nxc4 {[%emt 0:00:08]} dxc4 {[%emt 0:00:09]} 24. Qxc4 {[%emt 0:00:03][%mdl 4096] Endgame KQR-KQR} Rd8 {[%emt 0:00:05]} 25. Rd1 {[%emt 0:00:20]} Qe4 {[%emt 0:02:15]} 26. Qc7 {[%emt 0:01:17][%csl LRa7,LRd8]} Rd5 {[%emt 0:00:53]} 27. Qxa7 {[%emt 0:00:44]} Rxd4 {[%emt 0:00:16]} 28. Rxd4 {[%emt 0:00:31]} Qxd4 {[%emt 0:00:24] KQ-KQ} 29. g3 {[%emt 0:00:24]} h5 {[%emt 0:00:14]} 30. h4 $1 {[%emt 0:00:05]} Kg7 {[%emt 0:00:09]} 31. Qb7 {[%emt 0:00:54]} Qa1+ {[%emt 0:00:26]} 32. Kg2 {[%emt 0:00:04]} Qxa2 {[%emt 0:00:09] [#] Threatens to win with ...Qb2.} 33. Qxb6 {[%emt 0:00:05]} Qd5+ {[%emt 0:00:04]} 34. Kg1 {[%emt 0:00:11]} Qd1+ {[%emt 0:00:04]} 35. Kg2 {[%emt 0:00:05]} Qd5+ {[%emt 0:00:04]} 36. Kg1 $1 {[%emt 0:00:05]} Qd1+ {[%emt 0:00:02]} 37. Kg2 {[%emt 0:00:07]} Qd5+ {[%emt 0:00:03]} 38. Kh2 {[%emt 0:00:23]} Qf3 {[%emt 0:00:06]} 39. Qd4+ {[%emt 0:00:08]} Qf6 {[%emt 0:00:05]} 40. Qe3 {[%emt 0:00:05]} Qf5 {[%emt 0:00:05]} 41. Qd4+ {[%emt 0:30:07] Weighted Error Value: White=0.03 (flawless) /Black=0.01 (flawless)} 1/2-1/2

[Event "Summer Chess Classic-B 2022"]
[Site "Saint Louis"]
[Date "2022.06.08"]
[Round "7.1"]
[White "Dragun, Kamil"]
[Black "Vazquez, Guillermo"]
[Result "1/2-1/2"]
[ECO "E32"]
[WhiteElo "2571"]
[BlackElo "2557"]
[Annotator "TA"]
[PlyCount "60"]
[EventDate "2022.05.31"]
[EventType "tourn"]
[EventCountry "USA"]
[SourceTitle "playchess.com"]
[Source "ChessBase"]
[SourceQuality "1"]
[TimeControl "40/5400+30:1800+30"]

{[%evp 13,60,0,0,0,0,0,6,0,0,0,0,0,0,0,0,0,0,0,0,0,0,0,0,0,9,12,11,0,0,0,0,0,0,0,0,0,0,0,0,0,0,0,0,0,0,0,0,0,0]} 1. d4 {[%emt 0:00:18]} Nf6 {[%emt 0:00:41]} 2. c4 {[%emt 0:00:15]} e6 {[%emt 0:00:10]} 3. Nc3 {[%emt 0:00:16]} Bb4 {[%emt 0:01:25]} 4. Qc2 {[%emt 0:00:24]} O-O {[%emt 0:00:59]} 5. e4 {[%emt 0:01:57]} d5 {[%emt 0:00:45]} 6. e5 {[%emt 0:01:02]} Ne4 {[%emt 0:00:10]} 7. Bd3 {[%emt 0:00:45]} c5 $1 {[%emt 0:00:17] The position is equal.} 8. Nf3 {[%emt 0:00:26] E32: Nimzo-Indian: Classical (4 Qc2): 4...0-0.} cxd4 {[%emt 0:00:58]} 9. Nxd4 {[%emt 0:00:32]} Nd7 {[%emt 0:00:10]} 10. Bf4 {[%emt 0:01:03]} Qh4 {[%emt 0:03:33]} 11. g3 {[%emt 0:02:11]} Qh5 {[%emt 0:00:29]} 12. O-O {[%emt 0:02:50]} Bxc3 {[%emt 0:02:50]} 13. bxc3 {[%emt 0:00:59]} g5 $1 {[%emt 0:00:10]} (13... Nxe5 14. Be2 Ng4 15. Bxg4 Qxg4 16. f3 $16) 14. cxd5 {[%emt 0:00:26]} exd5 {[%emt 0:00:30]} 15. Be3 {[%emt 0:00:18][%cal Bf4e3,Be3d4,Bd4c5][%mdl 32] f3 is the strong threat.} Nxe5 {[%emt 0:00:21]} 16. f3 {[%emt 0:00:55] Prevents Bg4.} (16. Bxe4 dxe4 17. Qxe4 Re8 $11) 16... Nc5 {[%emt 0:02:34]} 17. Bf5 {[%emt 0:00:34]} Ne6 $1 {[%emt 0:01:14][%mdl 4] is more profitable than 17...f6 at the moment.} 18. Rae1 {[%emt 0:02:03]} Nxd4 {[%emt 0:02:07]} 19. Bxd4 {[%emt 0:00:09] This bishop pair is nice.} Nc6 {[%emt 0:00:08]} 20. Bc5 {[%emt 0:01:01]} Bxf5 {[%emt 0:02:45]} 21. Qxf5 {[%emt 0:00:25]} Rfe8 {[%emt 0:00:21] [#]} 22. Rxe8+ $146 {[%emt 0:01:03]} ({Predecessor:} 22. f4 Rxe1 23. Rxe1 h6 24. Qd7 Qg6 25. fxg5 hxg5 26. Bd4 Nxd4 {½-½ (26) Vaillant,F (2332)-Dorer,M (2344) ICCF email 2018}) 22... Rxe8 {[%emt 0:00:04]} 23. Qd7 {[%emt 0:00:22]} Re2 {[%emt 0:03:47][%csl Ge2,LRa2,LRh2][%cal Rh5h2] [#]} 24. Qc8+ {[%emt 0:01:20]} (24. h4 h6 25. Qf5 (25. Qxb7 gxh4 26. Qc8+ Kg7 $17) 25... Qg6 26. Qxg6+ fxg6 $17) 24... Kg7 {[%emt 0:00:20][%csl Ge2][%cal Rh5h2]} 25. Qf8+ {[%emt 0:00:08]} Kg6 {[%emt 0:01:18][%csl Ge2][%cal Rh5h2]} 26. Qg8+ {[%emt 0:00:08]} ({Much worse is} 26. h4 gxh4 27. g4 (27. Qg8+ Kf6 $17) 27... Qh6 28. Qd6+ Re6 29. Qxd5 Qf4 $17) 26... Kf6 {[%emt 0:00:13][%csl Ge2][%cal Rh5h2]} 27. Qh8+ {[%emt 0:00:14]} Kg6 {[%emt 0:00:13][%csl Ge2][%cal Rh5h2] [#]} 28. Qg8+ {[%emt 0:00:05]} Kf6 {[%emt 0:00:16][%csl Ge2][%cal Rh5h2]} 29. Qh8+ {[%emt 0:00:07]} Kg6 {[%emt 0:00:11][%csl Ge2][%cal Rh5h2]} 30. Qg8+ {[%emt 0:00:05]} Kf6 {[%emt 0:00:13] An even fight not without its subleties.  Weighted Error Value: White=0.01 (flawless) /Black=0.00 (flawless)} 1/2-1/2